fUST/lending_fUST_20240122
["ID","MTS","AMOUNT","RATE_DAILY","PERIOD"]
[312388056,1705854640042,-727.15,0.00027397,2]
[312388057,1705854640052,-500.0,0.00027397,2]
[312388058,1705854640061,-1257.59,0.00027397,2]
[312388059,1705854640070,-500.0,0.00027397,2]
[312388060,1705854640080,-500.0,0.00027397,2]
[312388061,1705854640089,-578.89876639,0.00027397,2]
[312388062,1705854640099,-500.0,0.00027397,2]
[312388063,1705854640108,-500.0,0.00027397,2]
[312388064,1705854640118,-1635.83,0.00027397,2]
[312388065,1705854640128,-500.0,0.00027397,2]
[312388066,1705854640138,-500.0,0.00027397,2]
[312388067,1705854640147,-500.0,0.00027397,2]
[312388068,1705854640157,-961.99,0.00027397,2]
[312388069,1705854640166,-500.0,0.00027397,2]
[312388070,1705854640176,-500.0,0.00027397,2]
[312388071,1705854640186,-2091.65,0.00027397,2]
[312388072,1705854640195,-500.0,0.00027397,2]
[312388073,1705854640205,-500.0,0.00027397,2]
[312388074,1705854640215,-500.0,0.00027397,2]
[312388075,1705854640225,-1198.45,0.00027397,2]
[312388076,1705854640235,-500.0,0.00027397,2]
[312388077,1705854640244,-682.31,0.00027397,2]
[312388078,1705854640253,-500.0,0.00027397,2]
[312388079,1705854640263,-500.0,0.00027397,2]
[312388080,1705854640273,-500.0,0.00027397,2]
[312388081,1705854640282,-500.0,0.00027397,2]
[312388082,1705854640292,-796.09,0.00027397,2]
[312388083,1705854640302,-1798.87,0.00027397,2]
[312388084,1705854640311,-155.0,0.00027397,2]
[312388085,1705854640321,-161.97874694,0.00027571,2]
[312388086,1705854640330,-2368.82761163,0.00027669,2]
[312388087,1705854640339,-500.0,0.00027671,2]
[312388088,1705854640349,-500.0,0.00027671,2]
[312388089,1705854640359,-500.0,0.00027671,2]
[312388090,1705854640368,-727.68,0.00027671,2]
[312388091,1705854640377,-374.03606538,0.00027671,2]
[312388092,1705854640387,-500.0,0.00027671,2]
[312388093,1705854640398,-500.0,0.00027671,2]
[312388094,1705854640407,-818.16,0.00027671,2]
[312388095,1705854640417,-380.77806428,0.00027671,2]
[312388096,1705854640427,-500.0,0.00027671,2]
[312388097,1705854640436,-500.0,0.00027671,2]
[312388098,1705854640445,-500.0,0.00027671,2]
[312388099,1705854640454,-500.0,0.00027671,2]
[312388100,1705854640463,-500.0,0.00027671,2]
[312388101,1705854640473,-500.0,0.00027671,2]
[312388102,1705854640482,-500.0,0.00027671,2]
[312388103,1705854640491,-500.0,0.00027671,2]
[312388104,1705854640500,-500.0,0.00027671,2]
[312388105,1705854640509,-500.0,0.00027671,2]
[312388106,1705854640519,-491.83100302,0.00027671,2]
[312388107,1705854640528,-500.0,0.00027671,2]
[312388108,1705854640537,-500.0,0.00027671,2]
[312388109,1705854640548,-500.0,0.00027671,2]
[312388110,1705854640557,-500.0,0.00027671,2]
[312388111,1705854640566,-500.0,0.00027671,2]
[312388112,1705854640575,-500.0,0.00027671,2]
[312388113,1705854640585,-500.0,0.00027671,2]
[312388114,1705854640594,-500.0,0.00027671,2]
[312388115,1705854640604,-500.0,0.00027671,2]
[312388116,1705854640613,-500.0,0.00027671,2]
[312388117,1705854640622,-500.0,0.00027671,2]
[312388118,1705854640632,-500.0,0.00027671,2]
[312388119,1705854640641,-334.34482967,0.00027671,2]
[312388120,1705854640650,-500.0,0.00027671,2]
[312388121,1705854640660,-500.0,0.00027671,2]
[312388122,1705854640681,-500.0,0.00027671,2]
[312388123,1705854640712,-1000.0,0.00027671,2]
[312388124,1705854640722,-500.0,0.00027671,2]
[312388125,1705854640731,-500.0,0.00027671,2]
[312388126,1705854640741,-500.0,0.00027671,2]
[312388127,1705854640750,-699.39,0.00027671,2]
[312388128,1705854640759,-295.79059734,0.00027671,2]
[312388129,1705854640768,-864.99,0.00027671,2]
[312388130,1705854640777,-500.0,0.00027671,2]
[312388131,1705854640786,-500.0,0.00027671,2]
[312388132,1705854640796,-500.0,0.00027671,2]
[312388133,1705854640807,-500.0,0.00027671,2]
[312388134,1705854640818,-500.0,0.00027671,2]
[312388135,1705854640827,-500.0,0.00027671,2]
[312388136,1705854640836,-500.0,0.00027671,2]
[312388137,1705854640846,-500.0,0.00027671,2]
[312388138,1705854640856,-500.0,0.00027671,2]
[312388139,1705854640865,-563.86,0.00027671,2]
[312388140,1705854640875,-500.0,0.00027671,2]
[312388141,1705854640885,-530.89378445,0.00027671,2]
[312388142,1705854640894,-770.08612166,0.00027671,2]
[312388143,1705854640903,-500.0,0.00027671,2]
[312388145,1705854640912,-500.0,0.00027671,2]
[312388147,1705854640921,-500.0,0.00027671,2]
[312388149,1705854640930,-500.0,0.00027671,2]
[312388150,1705854640940,-500.0,0.00027671,2]
[312388152,1705854640949,-500.0,0.00027671,2]
[312388154,1705854640958,-1551.8,0.00027671,2]
[312388156,1705854640967,-500.0,0.00027671,2]
[312388158,1705854640977,-500.0,0.00027671,2]
[312388160,1705854640987,-500.0,0.00027671,2]
[312388162,1705854640996,-1500.3,0.00027671,2]
[312388164,1705854641005,-286.77019817,0.00027671,2]
[312388166,1705854641014,-500.0,0.00027671,2]
[312388168,1705854641022,-500.0,0.00027671,2]
[312388170,1705854641031,-767.27,0.00027671,2]
[312388171,1705854641040,-500.0,0.00027671,2]
[312388173,1705854641050,-500.0,0.00027671,2]
[312388174,1705854641059,-4142.19,0.00027671,2]
[312388175,1705854641068,-17510.65,0.00027671,2]
[312388176,1705854641077,-500.0,0.00027671,2]
[312388177,1705854641087,-500.0,0.00027671,2]
[312388178,1705854641096,-500.0,0.00027671,2]
[312388179,1705854641105,-892.46,0.00027671,2]
[312388180,1705854641115,-763.77,0.00027671,2]
[312388181,1705854641124,-500.0,0.00027671,2]
[312388182,1705854641133,-1017.26,0.00027671,2]
[312388183,1705854641143,-3719.29,0.00027671,2]
[312388184,1705854641152,-423.02517394,0.00027671,2]
[312388186,1705854641161,-698.75,0.00027671,2]
[312388188,1705854641170,-800.84,0.00027671,2]
[312388189,1705854641179,-1058.54,0.00027671,2]
[312388190,1705854641191,-4933.01,0.00027671,2]
[312388191,1705854641200,-500.0,0.00027671,2]
[312388192,1705854641209,-500.0,0.00027671,2]
[312388193,1705854641338,-500.0,0.00027671,2]
[312388194,1705854641348,-7179.25,0.00027671,2]
[312388195,1705854641357,-1186.03,0.00027671,2]
[312388196,1705854641367,-754.35,0.00027671,2]
[312388197,1705854641376,-2001.01,0.00027671,2]
[312388198,1705854641386,-10497.0,0.00027671,2]
[312388200,1705854641395,-859.34,0.00027671,2]
[312388202,1705854641404,-5799.21,0.00027671,2]
[312388203,1705854641413,-606.88,0.00027671,2]
[312388204,1705854641423,-500.0,0.00027671,2]
[312388205,1705854641433,-500.0,0.00027671,2]
[312388206,1705854641441,-500.0,0.00027671,2]
[312388207,1705854641450,-2550.94,0.00027671,2]
[312388208,1705854641459,-1348.87,0.00027671,2]
[312388209,1705854641468,-490.94658652,0.00027671,2]
[312388210,1705854641477,-500.0,0.00027671,2]
[312388211,1705854641487,-563.13250472,0.00027671,2]
[312388212,1705854641497,-727.15,0.00027671,2]
[312388213,1705854641507,-500.0,0.00027671,2]
[312388214,1705854641516,-1257.59,0.00027671,2]
[312388215,1705854641525,-500.0,0.00027671,2]
[312388216,1705854641534,-500.0,0.00027671,2]
[312388217,1705854641543,-500.0,0.00027671,2]
[312388218,1705854641553,-1635.83,0.00027671,2]
[312388219,1705854641562,-500.0,0.00027671,2]
[312388220,1705854641571,-500.0,0.00027671,2]
[312388221,1705854641580,-500.0,0.00027671,2]
[312388222,1705854641590,-500.0,0.00027671,2]
[312388223,1705854641599,-961.99,0.00027671,2]
[312388224,1705854641609,-500.0,0.00027671,2]
[312388225,1705854641618,-500.0,0.00027671,2]
[312388226,1705854641628,-2091.65,0.00027671,2]
[312388227,1705854641637,-500.0,0.00027671,2]
[312388228,1705854641646,-500.0,0.00027671,2]
[312388229,1705854641655,-649.37020493,0.00027671,2]
[312388230,1705854641664,-1198.45,0.00027671,2]
[312388231,1705854641673,-682.31,0.00027671,2]
[312388232,1705854641683,-500.0,0.00027671,2]
[312388233,1705854641692,-500.0,0.00027671,2]
[312388234,1705854641701,-500.0,0.00027671,2]
[312388235,1705854641710,-500.0,0.00027671,2]
[312388236,1705854641719,-796.09,0.00027671,2]
[312388237,1705854641728,-1798.87,0.00027671,2]
[312388238,1705854641739,-200.0,0.00027719,15]
[312388239,1705854641747,-620.53406608,0.0002772,2]
[312388240,1705854641756,-161.97874694,0.00027845,2]
[312388241,1705854641765,-150.0,0.0002789,2]
[312388242,1705854641774,-21943.74062882,0.00027898,5]
[312388243,1705854641783,-561.48068216,0.00027898,3]
[312388244,1705854641792,-3984.69428122,0.00027898,3]
[312388245,1705854641801,-763.82268996,0.00027898,2]
[312388246,1705854641814,-3216.92126529,0.00027898,2]
[312388247,1705854641823,-261.52719804,0.00027898,2]
[312388248,1705854641833,-35159.51677456,0.00027898,5]
[312388249,1705854641842,-484.6670103,0.00027898,2]
[312388250,1705854641853,-3215.63352838,0.00027898,2]
[312388251,1705854641863,-312.4212651,0.00027898,2]
[312388252,1705854641872,-8631.52175773,0.00027898,7]
[312388253,1705854641882,-547.83435039,0.00027898,2]
[312388254,1705854641892,-156.83638758,0.00027898,2]
[312388255,1705854641901,-2532.40298917,0.00027898,3]
[312388256,1705854641910,-1354.60028178,0.00027898,5]
[312388257,1705854641919,-11281.22949167,0.00027898,3]
[312388258,1705854641929,-5000.0,0.00027898,5]
[312388259,1705854641938,-8699.30552909,0.00027906,5]
[312388260,1705854641947,-607.84511694,0.00027915,2]
[312388261,1705854641956,-2022.65166079,0.00027943,2]
[312388262,1705854641965,-155.03083291,0.00027943,2]
[312388263,1705854641974,-500.0,0.00027944,2]
[312388264,1705854641984,-30.45851436,0.00027944,2]
[312388265,1705854642078,-469.54148564,0.00027944,2]
[312388266,1705854642087,-480.31632438,0.00027944,2]
[312388267,1705854642096,-500.0,0.00027944,2]
[312388268,1705854642106,-500.0,0.00027944,2]
[312388269,1705854642116,-500.0,0.00027944,2]
[312388270,1705854642125,-500.0,0.00027944,2]
[312388271,1705854642133,-500.0,0.00027944,2]
[312388272,1705854642142,-436.59669086,0.00027944,2]
[312388273,1705854642151,-500.0,0.00027944,2]
[312388275,1705854642161,-500.0,0.00027944,2]
[312388276,1705854642170,-500.0,0.00027944,2]
[312388278,1705854642179,-500.0,0.00027944,2]
[312388280,1705854642188,-500.0,0.00027944,2]
[312388281,1705854642198,-241.38778708,0.00027944,2]
[312388282,1705854642208,-500.0,0.00027944,2]
[312388284,1705854642217,-500.0,0.00027944,2]
[312388286,1705854642227,-500.0,0.00027944,2]
[312388288,1705854642238,-500.0,0.00027944,2]
[312388290,1705854642247,-500.0,0.00027944,2]
[312388292,1705854642256,-500.0,0.00027944,2]
[312388294,1705854642266,-500.0,0.00027944,2]
[312388296,1705854642275,-500.0,0.00027944,2]
[312388298,1705854642284,-500.0,0.00027944,2]
[312388301,1705854642294,-500.0,0.00027944,2]
[312388304,1705854642303,-500.0,0.00027944,2]
[312388308,1705854642312,-500.0,0.00027944,2]
[312388310,1705854642321,-471.6553859,0.00027944,2]
[312388314,1705854642331,-500.0,0.00027944,2]
[312388317,1705854642341,-500.0,0.00027944,2]
[312388320,1705854642350,-500.0,0.00027944,2]
[312388323,1705854642360,-500.0,0.00027944,2]
[312388327,1705854642369,-405.35144726,0.00027944,2]
[312388329,1705854642379,-500.0,0.00027944,2]
[312388332,1705854642389,-151.0,0.00027945,2]
[312388335,1705854642398,-16.75995655,0.00027945,2]
[312388338,1705854642411,-134.24004345,0.00027945,2]
[312388341,1705854642419,-151.0,0.00027945,2]
[312388344,1705854642429,-365.534208,0.00027945,2]
[312388347,1705854642438,-150.34915398,0.00027945,2]
[312388350,1705854642449,-215.18505402,0.00027945,2]
[312388352,1705854642458,-151.0,0.00027945,2]
[312388354,1705854642468,-151.0,0.00027945,2]
[312388356,1705854642477,-123.11797262,0.00027945,2]
[312388457,1705855201311,150.74373565,0.00028488,120]
[312388460,1705855576401,150.72868836,0.00028637,120]
[312388461,1705855596283,-154.73694719,0.0002197,2]
[312388462,1705855596303,-158.66336584,0.0002197,2]
[312388463,1705855646102,-154.73694719,0.00021969,4]
[312388464,1705855646123,-32.71270849,0.0002197,2]
[312388465,1705855646148,-1242.31465176,0.0002197,2]
[312388466,1705855646169,-751.94266972,0.00021975,2]
[312388467,1705855651080,-1354.60028178,0.0002197,5]
[312388468,1705855651100,-158.19493205,0.00021975,2]
[312388552,1705855832113,-468.54325938,0.0002197,5]
[312388554,1705855832124,-204.16619624,0.00021975,2]
[312388557,1705855832134,-547.83435039,0.00021975,2]
[312388558,1705855832143,-293.39580768,0.00022,4]
[312388560,1705855832152,-166.666666,0.00022876,2]
[312388562,1705855832161,-154.73694719,0.00022999,4]
[312388564,1705855832171,-1571.13875008,0.00023,2]
[312388566,1705855832182,-171.333862,0.00023099,2]
[312388568,1705855832192,-24900.0,0.00023275,2]
[312388570,1705855832202,-166.666666,0.00023656,2]
[312388572,1705855832211,-222.041206,0.00024041,2]
[312388574,1705855832221,-166.666666,0.00024435,2]
[312388576,1705855832231,-173.519603,0.0002466,2]
[312388578,1705855832241,-1046.11952043,0.00025118,2]
[312388580,1705855832251,-976.79905731,0.00025149,2]
[312388582,1705855832260,-166.666666,0.00025215,2]
[312388584,1705855832270,-899.52505577,0.00025798,2]
[312388587,1705855832284,-174.159642,0.00025974,2]
[312388589,1705855832293,-166.666666,0.00025995,2]
[312388591,1705855832302,-421.93231746,0.00026546,5]
[312388593,1705855832311,-4815.44,0.00027187,3]
[312388594,1705855832321,-319.53739566,0.00027187,3]
[312388841,1705855838096,-671.76298502,0.00027195,2]
[312388842,1705855838106,-327.18048,0.00027195,2]
[312388843,1705855838115,-3327.41901642,0.00027195,2]
[312388844,1705855838125,-156.00838388,0.00027195,2]
[312388845,1705855838135,-856.78540312,0.00027195,2]
[312388846,1705855838145,-211.49658438,0.00027195,2]
[312388848,1705855838155,-264.60687267,0.00027195,2]
[312388849,1705855838165,-154.84514885,0.00027195,2]
[312388850,1705855838175,-1426.58812355,0.00027195,2]
[312388851,1705855838190,-419.90951034,0.00027195,2]
[312388852,1705855838202,-2121.04486085,0.00027195,2]
[312388853,1705855838211,-425.88213647,0.00027195,2]
[312388854,1705855838221,-237.57908484,0.00027195,2]
[312388855,1705855838231,-229.81127162,0.00027195,2]
[312388856,1705855838241,-857.57949591,0.00027195,2]
[312388857,1705855838251,-191.16884209,0.00027195,2]
[312388858,1705855838262,-2030.90555518,0.00027196,2]
[312388859,1705855838271,-155.82373188,0.00027196,2]
[312388860,1705855838280,-40301.68261597,0.00027197,2]
[312388861,1705855838291,-161.97874694,0.00027297,2]
[312388862,1705855838300,-200.0,0.00027299,15]
[312388863,1705855838309,-453.82432863,0.00027397,2]
[312388864,1705855838318,-500.0,0.00027397,2]
[312388865,1705855838327,-500.0,0.00027397,2]
[312388866,1705855838336,-500.0,0.00027397,2]
[312388867,1705855838345,-500.0,0.00027397,2]
[312388868,1705855838353,-500.0,0.00027397,2]
[312388869,1705855838363,-500.0,0.00027397,2]
[312388870,1705855838372,-500.0,0.00027397,2]
[312388871,1705855838381,-500.0,0.00027397,2]
[312388872,1705855838390,-500.0,0.00027397,2]
[312388873,1705855838399,-500.0,0.00027397,2]
[312388874,1705855838408,-500.0,0.00027397,2]
[312388875,1705855838417,-500.0,0.00027397,2]
[312388877,1705855838427,-500.0,0.00027397,2]
[312388878,1705855838436,-500.0,0.00027397,2]
[312388879,1705855838446,-500.0,0.00027397,2]
[312388880,1705855838454,-500.0,0.00027397,2]
[312388881,1705855838464,-500.0,0.00027397,2]
[312388882,1705855838473,-500.0,0.00027397,2]
[312388883,1705855838482,-500.0,0.00027397,2]
[312388884,1705855838492,-500.0,0.00027397,2]
[312388885,1705855838501,-500.0,0.00027397,2]
[312388886,1705855838511,-500.0,0.00027397,2]
[312388887,1705855838521,-500.0,0.00027397,2]
[312388888,1705855838530,-500.0,0.00027397,2]
[312388889,1705855838539,-295.79059734,0.00027397,2]
[312388890,1705855838549,-526.31782774,0.00027397,2]
[312388891,1705855838558,-500.0,0.00027397,2]
[312388892,1705855838567,-336.38345013,0.00027397,2]
[312388893,1705855838577,-500.0,0.00027397,2]
[312388894,1705855838586,-500.0,0.00027397,2]
[312388895,1705855838595,-500.0,0.00027397,2]
[312388896,1705855838605,-712.42,0.00027397,2]
[312388897,1705855838614,-454.30429617,0.00027397,2]
[312388898,1705855838623,-771.97,0.00027397,2]
[312388899,1705855838633,-500.0,0.00027397,2]
[312388900,1705855838642,-582.03,0.00027397,2]
[312388901,1705855838651,-303.51719072,0.00027397,2]
[312388902,1705855838660,-500.0,0.00027397,2]
[312388903,1705855838670,-155.0,0.00027397,2]
[312388904,1705855838679,-500.0,0.00027397,2]
[312388905,1705855838689,-500.0,0.00027397,2]
[312388906,1705855838698,-1742.76,0.00027397,2]
[312388907,1705855838707,-2145.78,0.00027397,2]
[312388908,1705855838717,-500.0,0.00027397,2]
[312388909,1705855838726,-500.0,0.00027397,2]
[312388910,1705855838736,-530.89378445,0.00027397,2]
[312388911,1705855838745,-500.0,0.00027397,2]
[312388912,1705855838755,-500.0,0.00027397,2]
[312388913,1705855838764,-158.7612329,0.00027397,2]
[312388914,1705855838774,-500.0,0.00027397,2]
[312388915,1705855838783,-500.0,0.00027397,2]
[312388916,1705855838793,-500.0,0.00027397,2]
[312388917,1705855838802,-790.17,0.00027397,2]
[312388918,1705855838812,-500.0,0.00027397,2]
[312388919,1705855838821,-500.0,0.00027397,2]
[312388920,1705855838832,-500.0,0.00027397,2]
[312388921,1705855838841,-500.0,0.00027397,2]
[312388922,1705855838851,-500.0,0.00027397,2]
[312388923,1705855838860,-500.0,0.00027397,2]
[312388924,1705855838870,-500.0,0.00027397,2]
[312388925,1705855838882,-500.0,0.00027397,2]
[312388926,1705855838893,-500.0,0.00027397,2]
[312388927,1705855838905,-500.0,0.00027397,2]
[312388928,1705855838914,-500.0,0.00027397,2]
[312388929,1705855838924,-500.0,0.00027397,2]
[312388930,1705855838933,-500.0,0.00027397,2]
[312388931,1705855838944,-500.0,0.00027397,2]
[312388932,1705855838953,-500.0,0.00027397,2]
[312388933,1705855838963,-500.0,0.00027397,2]
[312388934,1705855838972,-161.90922451,0.00027397,2]
[312388935,1705855838982,-500.0,0.00027397,2]
[312388936,1705855838992,-500.0,0.00027397,2]
[312388937,1705855839002,-500.0,0.00027397,2]
[312388938,1705855839011,-680.55,0.00027397,2]
[312388939,1705855839020,-500.0,0.00027397,2]
[312388940,1705855839031,-832.77,0.00027397,2]
[312388941,1705855839042,-500.0,0.00027397,2]
[312388942,1705855839053,-500.0,0.00027397,2]
[312388943,1705855839063,-500.0,0.00027397,2]
[312388944,1705855839073,-500.0,0.00027397,2]
[312388945,1705855839083,-500.0,0.00027397,2]
[312388946,1705855839093,-1000.0,0.00027397,2]
[312388947,1705855839103,-500.0,0.00027397,2]
[312388948,1705855839112,-500.0,0.00027397,2]
[312388949,1705855839121,-500.0,0.00027397,2]
[312388950,1705855839132,-500.0,0.00027397,2]
[312388951,1705855839141,-591.22,0.00027397,2]
[312388952,1705855839150,-500.0,0.00027397,2]
[312388953,1705855839160,-490.94658652,0.00027397,2]
[312388954,1705855839171,-1704.0,0.00027397,2]
[312388955,1705855839181,-500.0,0.00027397,2]
[312388956,1705855839197,-763.98,0.00027397,2]
[312388957,1705855839206,-500.0,0.00027397,2]
[312388958,1705855839216,-500.0,0.00027397,2]
[312388959,1705855839226,-500.0,0.00027397,2]
[312388960,1705855839236,-500.0,0.00027397,2]
[312388961,1705855839245,-500.0,0.00027397,2]
[312388962,1705855839254,-500.0,0.00027397,2]
[312388963,1705855839263,-500.0,0.00027397,2]
[312388964,1705855839272,-1314.58,0.00027397,2]
[312388965,1705855839284,-500.0,0.00027397,2]
[312388966,1705855839295,-500.0,0.00027397,2]
[312388967,1705855839304,-500.0,0.00027397,2]
[312388968,1705855839313,-500.0,0.00027397,2]
[312388969,1705855839323,-500.0,0.00027397,2]
[312388970,1705855839332,-500.0,0.00027397,2]
[312388971,1705855839341,-580.19,0.00027397,2]
[312388972,1705855839350,-774.88,0.00027397,2]
[312388973,1705855839360,-669.89,0.00027397,2]
[312388974,1705855839370,-722.01,0.00027397,2]
[312388975,1705855839380,-500.0,0.00027397,2]
[312388976,1705855839389,-500.0,0.00027397,2]
[312388977,1705855839398,-500.0,0.00027397,2]
[312388978,1705855839407,-500.0,0.00027397,2]
[312388979,1705855839416,-530.76,0.00027397,2]
[312388980,1705855839425,-776.97,0.00027397,2]
[312388981,1705855839435,-500.0,0.00027397,2]
[312388982,1705855839445,-828.42,0.00027397,2]
[312388983,1705855839453,-500.0,0.00027397,2]
[312388984,1705855839463,-500.0,0.00027397,2]
[312388985,1705855839473,-500.0,0.00027397,2]
[312388986,1705855839482,-500.0,0.00027397,2]
[312388987,1705855839491,-20233.72,0.00027397,2]
[312388988,1705855839500,-500.0,0.00027397,2]
[312388989,1705855839509,-1728.01,0.00027397,2]
[312388990,1705855839519,-500.0,0.00027397,2]
[312388991,1705855839529,-374.03606538,0.00027397,2]
[312388992,1705855839539,-437.94230908,0.00027397,2]
[312388993,1705855839548,-4597.32,0.00027397,2]
[312388994,1705855839557,-500.0,0.00027397,2]
[312388995,1705855839566,-500.0,0.00027397,2]
[312388996,1705855839575,-1668.84,0.00027397,2]
[312388997,1705855839584,-528.38216131,0.00027397,2]
[312388998,1705855839592,-500.0,0.00027397,2]
[312388999,1705855839601,-500.0,0.00027397,2]
[312389000,1705855839610,-502.39572461,0.00027397,2]
[312389001,1705855839619,-500.0,0.00027397,2]
[312389002,1705855839629,-805.13,0.00027397,2]
[312389003,1705855839638,-368.94436176,0.00027397,2]
[312389004,1705855839647,-770.08612166,0.00027397,2]
[312389005,1705855839656,-423.02517394,0.00027397,2]
[312389006,1705855839665,-500.0,0.00027397,2]
[312389007,1705855839674,-912.03,0.00027397,2]
[312389008,1705855839683,-1980.02,0.00027397,2]
[312389009,1705855839692,-500.0,0.00027397,2]
[312389010,1705855839701,-11799.37,0.00027397,2]
[312389011,1705855839710,-1112.5,0.00027397,2]
[312389012,1705855839719,-500.0,0.00027397,2]
[312389013,1705855839728,-500.0,0.00027397,2]
[312389014,1705855839737,-6480.37,0.00027397,2]
[312389015,1705855839746,-500.0,0.00027397,2]
[312389016,1705855839755,-500.0,0.00027397,2]
[312389017,1705855839763,-500.0,0.00027397,2]
[312389018,1705855839772,-500.0,0.00027397,2]
[312389019,1705855839781,-7157.59,0.00027397,2]
[312389020,1705855839790,-500.0,0.00027397,2]
[312389021,1705855839798,-500.0,0.00027397,2]
[312389022,1705855839807,-500.0,0.00027397,2]
[312389023,1705855839817,-1513.6,0.00027397,2]
[312389024,1705855839826,-2035.44,0.00027397,2]
[312389025,1705855839835,-930.62,0.00027397,2]
[312389026,1705855839844,-954.49,0.00027397,2]
[312389027,1705855839852,-500.0,0.00027397,2]
[312389028,1705855839861,-1087.33,0.00027397,2]
[312389029,1705855839870,-500.0,0.00027397,2]
[312389030,1705855839879,-867.31,0.00027397,2]
[312389031,1705855839888,-500.0,0.00027397,2]
[312389032,1705855839897,-500.0,0.00027397,2]
[312389033,1705855839906,-506.09,0.00027397,2]
[312389034,1705855839915,-503.30082423,0.00027397,2]
[312389035,1705855839924,-4028.54,0.00027397,2]
[312389036,1705855839933,-2444.65,0.00027397,2]
[312389037,1705855839942,-500.0,0.00027397,2]
[312389038,1705855839951,-500.0,0.00027397,2]
[312389039,1705855839960,-505.16,0.00027397,2]
[312389040,1705855839970,-500.0,0.00027397,2]
[312389041,1705855839979,-5291.05,0.00027397,2]
[312389042,1705855839988,-470.11053392,0.00027397,2]
[312389043,1705855839996,-500.0,0.00027397,2]
[312389044,1705855840005,-500.0,0.00027397,2]
[312389045,1705855840015,-500.0,0.00027397,2]
[312389046,1705855840023,-500.0,0.00027397,2]
[312389047,1705855840033,-500.0,0.00027397,2]
[312389048,1705855840042,-1291.28,0.00027397,2]
[312389049,1705855840052,-500.0,0.00027397,2]
[312389050,1705855840061,-1301.54,0.00027397,2]
[312389051,1705855840070,-1033.57,0.00027397,2]
[312389052,1705855840079,-500.0,0.00027397,2]
[312389053,1705855840088,-590.37,0.00027397,2]
[312389054,1705855840097,-161.23083254,0.0002767,2]
[312389055,1705855840106,-500.0,0.0002767,2]
[312389056,1705855840114,-500.0,0.0002767,2]
[312389057,1705855840123,-500.0,0.00027671,2]
[312389058,1705855840132,-500.0,0.00027671,2]
[312389059,1705855840141,-500.0,0.00027671,2]
[312389060,1705855840150,-500.0,0.00027671,2]
[312389061,1705855840159,-500.0,0.00027671,2]
[312389062,1705855840168,-500.0,0.00027671,2]
[312389063,1705855840178,-500.0,0.00027671,2]
[312389064,1705855840190,-500.0,0.00027671,2]
[312389065,1705855840200,-491.83100302,0.00027671,2]
[312389066,1705855840210,-500.0,0.00027671,2]
[312389067,1705855840222,-500.0,0.00027671,2]
[312389068,1705855840231,-500.0,0.00027671,2]
[312389069,1705855840240,-500.0,0.00027671,2]
[312389070,1705855840249,-500.0,0.00027671,2]
[312389071,1705855840258,-500.0,0.00027671,2]
[312389072,1705855840269,-500.0,0.00027671,2]
[312389073,1705855840278,-334.34482967,0.00027671,2]
[312389074,1705855840287,-712.42,0.00027671,2]
[312389075,1705855840297,-771.97,0.00027671,2]
[312389076,1705855840306,-582.03,0.00027671,2]